bitfinex/quotes_SOLUSD_20250917
["timestamp","ask_amount","ask_price","bid_price","bid_amount"]
[1758070865327,1e-08,236.56,236.55,48.2329463]
[1758070865526,0.06,236.57,236.55,49.92538743]
[1758070865731,0.06,236.57,236.56,1.97735229]
[1758070866448,0.06,236.57,236.56,7.89705078]
[1758070869143,0.06,236.57,236.56,39.87705078]
[1758070869333,0.06,236.57,236.56,40.55705078]
[1758070870426,0.06,236.57,236.56,38.86460964]
[1758070880058,1e-08,236.57,236.56,52.46020365]
[1758070880776,0.06,236.62,236.59,39.59559401]
[1758070880927,1e-08,236.62,236.61,15.17726944]
[1758070881130,0.79,236.69,236.65,13.59559401]
[1758070881462,0.79,236.69,236.68,14.8929463]
[1758070881638,0.1,236.69,236.68,47.5329463]
[1758070881838,0.1,236.69,236.68,14.8929463]
[1758070882030,0.1,236.69,236.68,51.75806037]
[1758070888244,0.16,236.69,236.68,51.75806037]
[1758070889163,0.82,236.69,236.68,47.5129463]
[1758070889366,0.82,236.69,236.68,33.91735229]
[1758070889571,5.04494448,236.69,236.62,1.6917969]
[1758070889773,0.66,236.68,236.63,47.5129463]
[1758070889945,4.38494448,236.69,236.63,14.8929463]
[1758070889946,0.66,236.67,236.63,14.8929463]
[1758070890145,0.66,236.66,236.64,32.62]
[1758070890381,0.66,236.65,236.64,32.62]
[1758070891664,0.16,236.69,236.64,32.62]
[1758070891971,0.66,236.68,236.65,1.29735229]
[1758070892166,0.66,236.67,236.66,32.62]
[1758070892475,1.95735229,236.67,236.58,19.11984629]
[1758070892681,1.95735229,236.66,236.59,32.62]
[1758070892973,0.66,236.65,236.59,32.62]
[1758070893152,0.66,236.64,236.59,32.62]
[1758070893479,0.66,236.63,236.58,13.59559401]
[1758070893765,0.66,236.63,236.56,0.03]
[1758070893766,1.29735229,236.61,236.56,0.03]
[1758070893946,1.29735229,236.59,236.56,0.03]
[1758070894146,14.7910653,236.63,236.57,21.7]
[1758070894147,1.29735229,236.58,236.57,21.7]
[1758070894367,1.95735229,236.58,236.57,21.7]
[1758070894557,1.95735229,236.58,236.56,0.03]
[1758070894754,1.29735229,236.57,236.56,32.65]
[1758070894950,1.95735229,236.57,236.56,32.65]
[1758070895371,6.18443095,236.57,236.56,32.65]
[1758070896464,6.18443095,236.57,236.56,0.03]
[1758070899462,4.22680703,236.59,236.56,0.03]
[1758070899775,0.66,236.57,236.56,0.03]
[1758070900955,4.88680703,236.59,236.56,0.03]
[1758070901160,0.66,236.58,236.56,0.03]
[1758070902477,1.95735229,236.6,236.56,0.03]
[1758070902675,0.66,236.59,236.56,0.03]
[1758070904176,131.7,236.6,236.56,0.03]
[1758070904572,132.36,236.6,236.56,0.03]
[1758070905383,131.7,236.6,236.57,0.72]
[1758070905878,131.7,236.6,236.56,1.32735229]
[1758070906075,131.7,236.6,236.56,2.04735229]
[1758070906379,131.7,236.6,236.57,32.62]
[1758070910164,132.36,236.6,236.57,32.62]
[1758070911884,131.7,236.6,236.57,32.62]
[1758070912261,0.66,236.59,236.57,32.62]
[1758070912462,135.92657841,236.6,236.57,32.62]
[1758070912677,136.58657841,236.6,236.57,32.62]
[1758070916393,136.58657841,236.6,236.56,0.03]
[1758070916691,131.7,236.6,236.57,32.62]
[1758070917268,131.7,236.6,236.59,2.02808793]
[1758070917472,4.91546804,236.67,236.59,2.74808793]
[1758070917674,131.7,236.66,236.63,2.02808793]
[1758070917879,131.7,236.66,236.6,0.72]
[1758070917880,131.7,236.66,236.64,35.36808793]
[1758070918186,0.16,236.69,236.65,2.74808793]
[1758070918591,0.85,236.69,236.65,2.74808793]
[1758070919476,0.16,236.69,236.66,0.72]
[1758070919784,0.16,236.69,236.67,2.02808793]
[1758070919993,0.16,236.69,236.68,32.62]
[1758070920178,0.16,236.69,236.68,33.34]
[1758070920379,0.16,236.69,236.68,35.36808793]
[1758070921691,0.16,236.69,236.68,53.18879601]
[1758070924485,0.16,236.69,236.68,20.56879601]
[1758070924678,0.16,236.69,236.68,53.16879601]
[1758070925182,0.16,236.69,236.68,20.56879601]
[1758070925581,0.16,236.69,236.68,53.16879601]
[1758070926171,0.06,236.72,236.69,13.59559401]
[1758070926378,0.06,236.72,236.71,15.62368194]
[1758070926597,0.06,236.72,236.71,48.22368194]
[1758070926896,0.06,236.72,236.71,48.94368194]
[1758070927578,0.06,236.72,236.71,53.16826053]
[1758070929394,0.06,236.72,236.71,51.1401726]
[1758070929571,0.06,236.72,236.71,53.16826053]
[1758070932480,0.06,236.72,236.71,48.20368194]
[1758070933178,0.06,236.72,236.71,2.02808793]
[1758070933395,0.75,236.72,236.71,34.60808793]
[1758070934291,0.75,236.72,236.71,32.58]
[1758070934497,0.06,236.72,236.71,34.60808793]
[1758070935004,0.06,236.72,236.71,35.32808793]
[1758070936286,0.06,236.72,236.71,39.55266652]
[1758070936488,0.06,236.72,236.71,53.14826053]
[1758070937794,0.06,236.72,236.71,51.1201726]
[1758070938097,0.06,236.72,236.71,53.14826053]
[1758070939201,0.06,236.72,236.71,51.1201726]
[1758070939499,0.06,236.72,236.71,53.14826053]
[1758070943787,0.06,236.72,236.71,51.1201726]
[1758070944110,0.06,236.72,236.71,53.14826053]
[1758070951014,0.06,236.72,236.71,52.42826053]
[1758070951312,0.06,236.72,236.71,53.09826053]
[1758070959010,0.06,236.72,236.71,52.42826053]
[1758070959394,0.06,236.72,236.71,53.09826053]
[1758070963531,0.76,236.72,236.71,76.3801726]
[1758070963700,0.76,236.72,236.71,43.8201726]
[1758070963901,0.76,236.72,236.71,78.40826053]
[1758070966127,0.76,236.72,236.71,76.3801726]
[1758070967128,0.76,236.72,236.71,78.40826053]
[1758070967440,0.76,236.72,236.71,45.84826053]
[1758070967729,0.76,236.72,236.71,32.56]
[1758070969424,0.76,236.72,236.71,36.78457859]
[1758070969820,0.06,236.72,236.71,52.40826053]
[1758070973033,0.06,236.72,236.71,53.07826053]
[1758070973345,0.06,236.72,236.71,57.48545225]
[1758070975828,0.06,236.72,236.71,56.752896]
[1758070983253,0.06,236.72,236.71,56.062896]
[1758070983426,0.74,236.72,236.71,82.062896]
[1758070984131,0.74,236.72,236.71,49.522896]
[1758070984324,0.74,236.72,236.71,82.062896]
[1758070986135,0.74,236.72,236.71,80.76736432]
[1758070986332,0.74,236.72,236.71,82.062896]
[1758070987130,0.06,236.72,236.71,82.062896]
[1758070989027,0.06,236.72,236.71,49.522896]
[1758070989229,0.06,236.72,236.71,82.062896]
[1758070991652,0.06,236.72,236.71,80.76736432]
[1758070991847,0.74,236.72,236.71,82.062896]
[1758070992733,0.74,236.72,236.71,68.46730199]
[1758070995150,0.74,236.72,236.71,34.63177031]
[1758070995354,0.74,236.72,236.71,68.46730199]
[1758070996553,0.74,236.72,236.71,9.92730199]
[1758070996758,0.74,236.72,236.71,42.46730199]
[1758070997333,0.06,236.72,236.71,42.46730199]
[1758070997739,0.06,236.72,236.71,9.92730199]
[1758070997939,0.06,236.72,236.71,42.46730199]
[1758070999354,0.06,236.72,236.71,56.782896]
[1758070999557,0.06,236.72,236.71,61.96502272]
[1758071000159,0.06,236.72,236.71,63.65646193]
[1758071000659,0.06,236.72,236.71,58.47433521]
[1758071006554,0.06,236.72,236.71,63.65646193]
[1758071007151,0.06,236.72,236.71,58.47433521]
[1758071009373,0.06,236.72,236.71,63.65646193]
[1758071009571,0.06,236.72,236.71,23.91880353]
[1758071009874,0.06,236.72,236.71,57.75433521]
[1758071011860,0.06,236.72,236.71,58.45433521]
[1758071012777,0.78,236.72,236.71,6.09863093]
[1758071013076,26.28432314,236.7,236.69,0.03]
[1758071013254,30.42792275,236.7,236.69,0.03]
[1758071013453,30.42792275,236.7,236.63,32.52]
[1758071013454,0.28432314,236.68,236.63,31.61]
[1758071013760,1.29553168,236.64,236.63,31.61]
[1758071013967,8.36942787,236.64,236.63,31.61]
[1758071014274,21.06542228,236.64,236.63,31.61]
[1758071015186,12.69599441,236.64,236.63,31.61]
[1758071015677,7.06522738,236.66,236.63,31.61]
[1758071015889,2.83974102,236.65,236.63,31.61]
[1758071016065,4.22548636,236.66,236.63,31.61]
[1758071016477,1.29553168,236.65,236.59,26.0]
[1758071016668,1.29553168,236.65,236.6,32.54]
[1758071017476,5.52122851,236.65,236.6,32.54]
[1758071018261,4.22569683,236.65,236.6,32.54]
[1758071018858,1.29553168,236.66,236.6,36.76649342]
[1758071019076,2.83622588,236.69,236.63,1.29553168]
[1758071019267,2.83622588,236.69,236.64,32.54]
[1758071019680,8.35673311,236.69,236.64,32.54]
[1758071020870,1.29553168,236.68,236.64,32.54]
[1758071021784,5.52080724,236.68,236.64,32.54]
[1758071021990,1.29553168,236.66,236.65,32.54]
[1758071024082,5.52100282,236.66,236.65,32.54]
[1758071026385,10.56243994,236.68,236.65,32.54]
[1758071026595,10.56243994,236.68,236.65,34.53553168]
[1758071027096,131.7,236.71,236.65,34.53553168]
[1758071027097,0.28432314,236.7,236.65,33.24]
[1758071027676,4.22493732,236.69,236.66,32.54]
[1758071029576,4.22493732,236.69,236.66,33.24]
[1758071031486,4.22493732,236.69,236.66,32.54]
[1758071032578,4.22493732,236.69,236.66,33.24]
[1758071036085,0.28432314,236.7,236.67,0.68]
[1758071036284,0.28432314,236.7,236.68,0.68]
[1758071036483,131.7,236.69,236.68,0.68]
[1758071036784,131.7,236.69,236.66,33.22]
[1758071036982,131.7,236.69,236.67,0.68]
[1758071037385,131.7,236.69,236.66,32.54]
[1758071037584,131.7,236.69,236.66,33.22]
[1758071039101,135.92497322,236.69,236.66,33.22]
[1758071040384,131.7,236.69,236.67,0.68]
[1758071040585,131.7,236.69,236.68,0.68]
[1758071041085,131.7,236.69,236.66,33.22]
[1758071041293,131.7,236.69,236.67,0.68]
[1758071042282,131.7,236.69,236.66,32.54]
[1758071042283,131.7,236.69,236.68,2.70643135]
[1758071042488,131.7,236.69,236.68,6.93154542]
[1758071044907,131.7,236.69,236.67,2.02643135]
[1758071045122,131.7,236.69,236.65,0.03]
[1758071045288,131.7,236.69,236.68,32.54]
[1758071046187,135.92493556,236.69,236.68,32.54]
[1758071047809,137.95136691,236.69,236.65,0.71]
[1758071048009,137.95136691,236.69,236.66,32.54]
[1758071048316,138.01136691,236.69,236.66,32.54]
[1758071049919,135.98493556,236.69,236.66,32.54]
[1758071050109,138.01136691,236.69,236.66,32.54]
[1758071051522,138.01136691,236.69,236.66,33.22]
[1758071051723,131.76,236.69,236.67,0.68]
[1758071052504,131.76,236.69,236.68,0.68]
[1758071053921,131.76,236.69,236.66,33.22]
[1758071054105,131.76,236.69,236.67,0.68]
[1758071055616,131.76,236.69,236.66,32.54]
[1758071056000,131.76,236.69,236.66,33.22]
[1758071057119,2.84637172,236.68,236.66,33.22]
[1758071057327,135.98500772,236.69,236.66,33.22]
[1758071057627,2.84639316,236.68,236.67,0.68]
[1758071057928,2.84639316,236.68,236.66,32.54]
[1758071058109,131.76,236.69,236.66,32.54]
[1758071058308,2.84640541,236.68,236.67,0.68]
[1758071058501,2.84640541,236.68,236.66,32.54]
[1758071058702,131.76,236.69,236.66,33.22]
[1758071059000,2.84640541,236.68,236.66,33.22]
[1758071059312,2.84665148,236.67,236.66,33.22]
[1758071061008,131.76,236.69,236.66,39.47190249]
[1758071061320,2.84666913,236.68,236.67,0.68]
[1758071061824,131.76,236.69,236.67,0.68]
[1758071062397,131.76,236.69,236.68,2.02643135]
[1758071062594,131.76,236.69,236.68,2.70643135]
[1758071063700,131.76,236.69,236.68,32.52]
[1758071064013,134.60677974,236.69,236.68,32.52]
[1758071065223,138.8317153,236.69,236.68,32.52]
[1758071067119,138.8317153,236.69,236.65,0.03]
[1758071067321,4.87321109,236.68,236.66,32.52]
[1758071067625,2.84677974,236.67,236.66,32.52]
[1758071068935,2.84677974,236.67,236.66,33.21]
[1758071073739,131.76,236.69,236.66,33.21]
[1758071074037,2.84952825,236.68,236.67,0.69]
[1758071074243,2.84952825,236.68,236.66,32.52]
[1758071074536,131.76,236.69,236.66,32.52]
[1758071074729,2.84956666,236.68,236.67,0.69]
[1758071075508,2.84956666,236.68,236.67,33.21]
[1758071075921,2.84956666,236.68,236.67,0.69]
[1758071076119,2.84956666,236.68,236.67,33.21]
[1758071078740,2.84956666,236.68,236.67,0.69]
[1758071078915,2.84956666,236.68,236.67,33.21]
[1758071080346,2.84956666,236.68,236.65,0.03]
[1758071080522,2.84931619,236.67,236.66,32.52]
[1758071081040,2.84931619,236.67,236.66,33.21]
[1758071084341,2.84931619,236.67,236.66,0.69]
[1758071084542,2.84931619,236.67,236.66,33.21]
[1758071085143,2.90931619,236.67,236.66,33.21]
[1758071090057,7.13460879,236.67,236.65,0.03]
[1758071090352,4.87574754,236.66,236.65,32.55]
[1758071091938,9.10121868,236.66,236.65,32.55]
[1758071092539,4.87574754,236.66,236.65,33.24]
[1758071092929,2.84931619,236.66,236.65,33.24]
[1758071093430,0.06,236.67,236.65,33.24]
[1758071093752,0.06,236.67,236.66,0.69]
[1758071093967,2.90679381,236.67,236.66,0.69]
[1758071094956,0.06,236.67,236.66,0.69]
[1758071095643,0.06,236.67,236.66,33.21]
[1758071098359,0.06,236.67,236.66,0.69]
[1758071098546,0.06,236.67,236.66,33.21]
[1758071107161,0.06,236.67,236.66,0.69]
[1758071107461,1.35698404,236.67,236.65,0.03]
[1758071107655,2.84957011,236.66,236.65,0.03]
[1758071109862,7.07504125,236.66,236.65,0.03]
[1758071110263,7.35936439,236.66,236.65,0.03]
[1758071110463,7.35936439,236.66,236.63,0.03]
[1758071110464,26.0,236.64,236.63,0.03]
[1758071110651,30.14655415,236.64,236.63,0.03]
[1758071110840,30.43087729,236.64,236.63,0.03]
[1758071111165,32.12389149,236.64,236.63,0.03]
[1758071112049,36.34971975,236.64,236.63,0.03]
[1758071114151,0.06,236.67,236.63,0.72]
[1758071114370,2.84557944,236.66,236.63,0.72]
[1758071115250,2.90557944,236.67,236.63,0.72]
[1758071116151,0.06,236.67,236.63,0.72]
[1758071116873,0.06,236.67,236.63,4.94596829]
[1758071117072,0.06,236.67,236.64,0.69]
[1758071120263,1.29698404,236.66,236.64,0.69]
[1758071121258,0.06,236.67,236.64,0.69]
[1758071121468,0.06,236.67,236.64,4.91578723]
[1758071121959,0.06,236.67,236.65,0.69]
[1758071123477,0.06,236.67,236.65,4.91563196]
[1758071124375,0.06,236.67,236.66,0.69]
[1758071127283,0.06,236.67,236.66,33.19]
[1758071133074,0.06,236.67,236.66,37.41547114]
[1758071134988,0.06,236.67,236.66,51.01106515]
[1758071135173,0.06,236.67,236.66,52.30804919]
[1758071136178,0.06,236.67,236.66,51.01106515]
[1758071136363,0.06,236.67,236.66,14.28559401]
[1758071136560,0.06,236.67,236.66,33.19]
[1758071137003,1.35698404,236.67,236.65,26.03]
[1758071137175,1.35698404,236.67,236.66,32.5]
[1758071138700,5.5823015,236.67,236.65,0.03]
[1758071138872,8.42757657,236.67,236.65,0.03]
[1758071139068,10.1798745,236.67,236.65,0.03]
[1758071139270,8.42757657,236.67,236.65,0.03]
[1758071139671,21.1219593,236.67,236.65,0.03]
[1758071139897,2.84527507,236.66,236.65,0.03]
[1758071140788,4.22547114,236.66,236.65,0.03]
[1758071140993,14.05136677,236.67,236.65,0.03]
[1758071141171,16.89673022,236.67,236.65,0.03]
[1758071141496,4.20234749,236.67,236.65,0.03]
[1758071141692,4.28531722,236.67,236.65,0.03]
[1758071141872,0.06,236.67,236.66,0.7]
[1758071147201,4.28534678,236.67,236.65,0.03]
[1758071147404,4.28534678,236.67,236.66,32.5]
[1758071147707,5.58233082,236.67,236.65,0.03]
[1758071149282,8.42838836,236.67,236.65,0.03]
[1758071149999,1.69265599,236.66,236.65,0.03]
[1758071151599,5.91812713,236.66,236.65,0.03]
[1758071158005,5.91812713,236.66,236.65,0.69]
[1758071158306,4.22547114,236.66,236.65,0.69]
[1758071159778,4.22547114,236.66,236.65,0.03]
[1758071160086,5.91805551,236.66,236.65,0.03]
[1758071160905,6.20237865,236.66,236.65,0.03]
[1758071162305,9.04843619,236.66,236.65,0.03]
[1758071163105,26.28432314,236.63,236.62,0.03]
[1758071163308,29.13038068,236.63,236.62,0.03]
[1758071163490,35.38343611,236.63,236.62,0.03]
[1758071164295,37.07652197,236.63,236.62,0.03]
[1758071166502,37.07652197,236.63,236.58,0.03]
[1758071166503,64.55898321,236.63,236.58,0.03]
[1758071166689,28.31137173,236.59,236.58,0.03]
[1758071166887,0.28432314,236.58,236.57,1e-08]
[1758071167414,1.9777674,236.58,236.57,1e-08]
[1758071167610,6.20466739,236.58,236.57,1e-08]
[1758071170700,38.72466739,236.58,236.57,1e-08]
[1758071170915,6.20466739,236.58,236.57,1e-08]
[1758071171214,38.70466739,236.58,236.57,1e-08]
[1758071173111,52.3002614,236.58,236.57,1e-08]
[1758071173313,26.0,236.55,236.54,1e-08]
[1758071173501,28.31137173,236.55,236.54,1e-08]
[1758071174023,30.00517453,236.55,236.54,1e-08]
[1758071174391,34.23261059,236.55,236.54,1e-08]
[1758071174996,34.23261059,236.55,236.54,0.66000001]
[1758071175308,4.5117592,236.55,236.54,0.66000001]
[1758071175616,32.53880779,236.55,236.54,0.66000001]
[1758071179529,30.5117592,236.55,236.54,0.66000001]
[1758071179706,32.53880779,236.55,236.54,0.66000001]
[1758071181703,30.5117592,236.55,236.54,0.66000001]
[1758071183532,32.53880779,236.55,236.54,0.66000001]
[1758071184730,32.53880779,236.55,236.54,1e-08]
[1758071186128,32.53880779,236.55,236.54,0.65000001]
[1758071188143,32.59880779,236.55,236.54,0.65000001]
[1758071193540,32.59880779,236.55,236.54,1e-08]
[1758071193929,34.29246715,236.55,236.54,1e-08]
[1758071194133,32.59880779,236.55,236.54,1e-08]
[1758071197335,32.59880779,236.55,236.54,0.65000001]
[1758071200251,32.59880779,236.55,236.54,1e-08]
[1758071201628,35.43873618,236.55,236.54,1e-08]
[1758071202553,37.13246725,236.55,236.54,1e-08]
[1758071203460,37.13246725,236.55,236.54,0.65000001]
[1758071203756,37.13246725,236.55,236.54,1e-08]
[1758071205033,37.13246725,236.55,236.54,0.65000001]
[1758071205855,37.13246725,236.55,236.54,1e-08]
[1758071210135,35.10541866,236.55,236.54,1e-08]
[1758071210441,35.43873618,236.55,236.54,0.65000001]
[1758071211436,35.43873618,236.55,236.54,1e-08]
[1758071213372,35.43873618,236.55,236.54,0.65000001]
[1758071215767,35.43873618,236.55,236.54,1e-08]
[1758071216275,35.43873618,236.55,236.54,0.71000001]
[1758071216654,37.13253898,236.55,236.54,1e-08]
[1758071219775,36.40440113,236.55,236.54,0.71000001]
[1758071220471,33.41168759,236.55,236.54,0.71000001]
[1758071221878,34.71059833,236.55,236.54,0.71000001]
[1758071224273,33.41168759,236.55,236.54,0.71000001]
[1758071224674,2.89992839,236.55,236.54,2.00891075]
[1758071224877,0.06,236.55,236.54,2.00891075]
[1758071226450,0.06,236.55,236.54,0.71000001]
[1758071226657,0.06,236.55,236.54,2.00891075]
[1758071228090,4.28743606,236.55,236.54,1e-08]
[1758071228790,31.87066994,236.55,236.54,1e-08]
[1758071230207,30.5717592,236.55,236.54,1e-08]
[1758071230385,31.87066994,236.55,236.54,1e-08]
[1758071231300,31.87066994,236.55,236.54,0.71000001]
[1758071231513,33.56425759,236.55,236.54,0.71000001]
[1758071231721,32.26534685,236.55,236.54,0.71000001]
[1758071232304,32.26534685,236.55,236.54,1e-08]
[1758071232674,32.26534685,236.55,236.54,0.71000001]
[1758071232903,32.26534685,236.55,236.54,1e-08]
[1758071233617,32.26534685,236.55,236.54,0.71000001]
[1758071233903,6.26534685,236.55,236.54,0.71000001]
[1758071234083,1.75358765,236.55,236.54,0.71000001]
[1758071234402,0.06,236.55,236.54,0.71000001]
[1758071234780,0.06,236.55,236.54,2.00891075]
[1758071236098,0.06,236.55,236.54,0.71000001]
[1758071236308,0.06,236.55,236.54,2.00891075]
[1758071236506,0.06,236.55,236.54,6.23652552]
[1758071237605,0.06,236.55,236.54,2.00891075]
[1758071237780,0.06,236.55,236.54,0.71000001]
[1758071238110,0.06,236.55,236.54,6.23652552]
[1758071239297,0.06,236.55,236.54,2.00891075]
[1758071240602,0.06,236.55,236.54,6.23652552]
[1758071243786,0.06,236.55,236.54,19.83211953]
[1758071243985,0.06,236.58,236.54,19.83211953]
[1758071243986,0.06,236.58,236.57,39.59559401]
[1758071244196,0.06,236.58,236.57,40.89450475]
[1758071244506,0.06,236.58,236.57,41.60450475]
[1758071245806,0.06,236.58,236.57,45.83158341]
[1758071246489,0.06,236.58,236.57,80.00409616]
[1758071250909,0.06,236.58,236.57,47.52409616]
[1758071268337,0.06,236.58,236.57,46.81409616]
[1758071268506,0.06,236.58,236.57,19.12158341]
[1758071269513,0.06,236.58,236.57,19.84158341]
[1758071276432,0.06,236.58,236.57,21.53416778]
[1758071279517,0.06,236.6,236.57,21.53416778]
[1758071279709,0.06,236.6,236.59,39.59559401]
[1758071279910,0.06,236.6,236.59,41.62210494]
[1758071280126,0.06,236.6,236.59,42.34210494]
[1758071280327,0.06,236.6,236.59,44.03440287]
[1758071281420,0.06,236.6,236.59,48.2611242]
[1758071286930,0.06,236.61,236.6,13.87991715]
[1758071287235,0.06,236.67,236.66,39.59559401]
[1758071287441,0.06,236.67,236.66,74.08210494]
[1758071287636,0.06,236.67,236.66,74.80210494]
[1758071288233,0.06,236.67,236.66,79.02757608]
[1758071288735,0.06,236.67,236.66,80.71937298]
[1758071289423,0.06,236.67,236.66,48.25937298]
[1758071289622,0.06,236.67,236.66,80.69937298]
[1758071290043,0.06,236.72,236.69,39.59559401]
[1758071290218,0.06,236.72,236.69,74.06210494]
[1758071290424,0.06,236.72,236.69,74.78210494]
[1758071290741,0.06,236.72,236.69,76.47354414]
[1758071291119,0.06,236.72,236.69,80.6984797]
[1758071291314,0.06,236.72,236.69,79.0070405]
[1758071291528,0.06,236.72,236.69,46.5670405]
[1758071291743,0.06,236.72,236.69,79.0070405]
[1758071292442,0.06,236.72,236.67,5.91672742]
[1758071292625,0.06,236.69,236.68,32.44]
[1758071293130,0.06,236.69,236.68,32.46]
[1758071293330,0.06,236.72,236.68,32.46]
[1758071293542,0.06,236.72,236.68,34.48651093]
[1758071294613,0.06,236.72,236.68,35.20651093]
[1758071295249,0.06,236.72,236.69,6.25144649]
[1758071295945,0.06,236.72,236.69,19.8470405]
[1758071296125,0.06,236.72,236.69,20.5670405]
[1758071299152,0.06,236.72,236.7,13.59559401]
[1758071299357,0.06,236.72,236.71,34.50651093]
[1758071299523,0.06,236.72,236.71,35.22651093]
[1758071299840,0.06,236.72,236.71,39.45108952]
[1758071304124,0.06,236.74,236.73,26.0]
[1758071304330,0.06,236.74,236.73,58.46]
[1758071304648,0.2,236.79,236.73,63.23302186]
[1758071304947,0.2,236.79,236.78,2.02651093]
[1758071305133,0.2,236.79,236.78,34.48651093]
[1758071305333,0.2,236.79,236.78,48.77210494]
[1758071305540,0.2,236.79,236.78,16.31210494]
[1758071305848,0.2,236.79,236.78,52.30543461]
[1758071308729,0.2,236.79,236.78,52.99543461]
[1758071309256,0.2,236.79,236.78,52.97543461]
[1758071310042,0.2,236.79,236.78,52.28543461]
[1758071310852,0.2,236.79,236.78,52.97543461]
[1758071313550,0.2,236.79,236.78,52.28543461]
[1758071314425,0.2,236.79,236.78,52.97543461]
[1758071314634,0.2,236.79,236.78,52.28543461]
[1758071316850,0.2,236.79,236.78,52.26543461]
[1758071319231,0.2,236.79,236.78,52.95543461]
[1758071322235,0.2,236.79,236.78,50.92892368]
[1758071322432,0.2,236.79,236.78,52.95543461]
[1758071330860,1e-08,236.79,236.78,52.95543461]
[1758071331371,1e-08,236.79,236.78,20.53543461]
[1758071331568,1e-08,236.79,236.78,52.95543461]
[1758071333768,1e-08,236.79,236.78,20.53543461]
[1758071333973,1e-08,236.79,236.78,52.95543461]
[1758071334160,1e-08,236.79,236.78,20.53543461]
[1758071334367,1e-08,236.79,236.78,52.95543461]
[1758071336362,1e-08,236.79,236.78,50.92892368]
[1758071336554,1e-08,236.79,236.78,52.95543461]
[1758071339774,1e-08,236.79,236.78,52.22391196]
[1758071343294,1e-08,236.79,236.76,4.22350818]
[1758071343505,0.06,236.78,236.74,4.25393113]
[1758071343677,0.06,236.77,236.75,32.42]
[1758071343877,0.06,236.76,236.75,32.42]
[1758071344708,0.06,236.78,236.75,32.42]
[1758071345080,1e-08,236.79,236.75,36.6438545]
[1758071345280,0.06,236.78,236.75,37.93884278]
[1758071346498,1e-08,236.79,236.76,14.89058229]
[1758071346695,1e-08,236.79,236.78,1.29498828]
[1758071347009,0.06000001,236.79,236.78,32.42]
[1758071347380,1e-08,236.79,236.78,32.42]
[1758071348720,1e-08,236.79,236.78,38.60831795]
[1758071350504,1e-08,236.79,236.78,52.20391196]
[1758071354429,1e-08,236.79,236.78,50.90892368]
[1758071354725,1e-08,236.79,236.78,52.20391196]
[1758071358329,1e-08,236.79,236.78,50.90892368]
[1758071358628,1e-08,236.79,236.78,52.20391196]
[1758071358802,1e-08,236.79,236.77,1.69093868]
[1758071358999,1e-08,236.79,236.78,32.42]
[1758071360125,1e-08,236.79,236.78,37.93831795]
[1758071360430,1e-08,236.79,236.78,38.60831795]
[1758071360823,1e-08,236.79,236.78,37.93831795]
[1758071364432,1e-08,236.79,236.78,36.64332967]
[1758071364635,1e-08,236.79,236.78,37.93831795]
[1758071365436,1e-08,236.79,236.78,37.96831795]
[1758071365934,1e-08,236.79,236.78,36.67332967]
[1758071366134,1e-08,236.79,236.78,37.96831795]
[1758071366711,1e-08,236.79,236.78,38.67831795]
[1758071368140,1e-08,236.79,236.78,6.25831795]
[1758071368334,1e-08,236.79,236.78,38.67831795]
[1758071370437,1e-08,236.79,236.78,32.45]
[1758071372317,1e-08,236.79,236.78,0.03]
[1758071372538,0.06000001,236.79,236.78,0.03]